fUSD/lending_fUSD_20250606
["ID","MTS","AMOUNT","RATE_DAILY","PERIOD"]
[364785310,1749241849105,-540.55,0.00027561,5]
[364785311,1749241849115,-480.0,0.00027561,5]
[364785312,1749241849124,-1667.28,0.00027561,5]
[364785313,1749241849133,-480.0,0.00027561,5]
[364785314,1749241849143,-708.27,0.00027561,5]
[364785315,1749241849153,-815.35,0.00027561,5]
[364785316,1749241849163,-480.0,0.00027561,5]
[364785317,1749241849177,-1322.04,0.00027561,5]
[364785318,1749241849187,-788.51,0.00027561,5]
[364785319,1749241849196,-480.0,0.00027561,5]
[364785320,1749241849207,-1588.19,0.00027561,5]
[364785321,1749241849218,-894.23,0.00027561,5]
[364785322,1749241849228,-493.66,0.00027561,5]
[364785323,1749241849238,-627.73,0.00027561,5]
[364785324,1749241849248,-907.31,0.00027561,5]
[364785325,1749241849259,-1000.0,0.00027561,5]
[364785326,1749241849268,-543.94,0.00027561,5]
[364785327,1749241849278,-480.0,0.00027561,5]
[364785328,1749241849288,-480.0,0.00027561,5]
[364785329,1749241849298,-907.9,0.00027561,5]
[364785330,1749241849308,-480.0,0.00027561,5]
[364785331,1749241849317,-612.39,0.00027561,5]
[364785332,1749241849327,-908.3,0.00027561,5]
[364785333,1749241849337,-327.8008773,0.00027561,5]
[364785334,1749241849347,-480.0,0.00027561,5]
[364785335,1749241849356,-480.0,0.00027561,5]
[364785336,1749241849366,-480.0,0.00027561,5]
[364785337,1749241849376,-480.0,0.00027561,5]
[364785338,1749241849388,-3267.11,0.00027561,5]
[364785339,1749241849397,-778.17,0.00027561,5]
[364785340,1749241849407,-948.36,0.00027561,5]
[364785341,1749241849416,-1438.85,0.00027561,5]
[364785342,1749241849426,-150.270793,0.00027561,5]
[364785343,1749241849436,-542.99,0.00027561,5]
[364785344,1749241849445,-555.32,0.00027561,5]
[364785345,1749241849455,-480.0,0.00027561,5]
[364785346,1749241849465,-480.0,0.00027561,5]
[364785347,1749241849474,-1535.87,0.00027561,5]
[364785348,1749241849484,-480.0,0.00027561,5]
[364785349,1749241849494,-151.0,0.00027561,7]
[364785350,1749241849504,-480.0,0.00027561,5]
[364785351,1749241849514,-151.0,0.00027561,7]
[364785352,1749241849523,-151.0,0.00027561,7]
[364785353,1749241849533,-151.0,0.00027561,7]
[364785354,1749241849543,-1296.25,0.00027561,5]
[364785355,1749241849554,-151.0,0.00027561,7]
[364785356,1749241849563,-480.0,0.00027561,5]
[364785357,1749241849574,-516.58,0.00027561,5]
[364785358,1749241849584,-538.08,0.00027561,5]
[364785359,1749241849594,-1575.78,0.00027561,5]
[364785360,1749241849603,-821.990228,0.00027561,7]
[364785361,1749241849613,-249.23324593,0.00027561,5]
[364785362,1749241849623,-805.066752,0.00027561,7]
[364785363,1749241849633,-821.990228,0.00027561,7]
[364785364,1749241849642,-983.05591,0.00027561,7]
[364785365,1749241849652,-970.72,0.00027561,5]
[364785366,1749241849661,-805.066752,0.00027561,7]
[364785367,1749241849670,-2734.62,0.00027561,5]
[364785368,1749241849679,-1837.71,0.00027561,5]
[364785369,1749241849689,-480.0,0.00027561,5]
[364785370,1749241849699,-983.05591,0.00027561,7]
[364785371,1749241849710,-165.43364,0.00027561,7]
[364785372,1749241849722,-2758.24,0.00027561,5]
[364785373,1749241849731,-4609.26,0.00027561,5]
[364785374,1749241849742,-480.0,0.00027561,5]
[364785375,1749241849751,-819.99,0.00027561,5]
[364785376,1749241849760,-1046.07,0.00027561,5]
[364785377,1749241849773,-480.0,0.00027561,5]
[364785378,1749241849782,-3979.76,0.00027561,5]
[364785379,1749241849793,-151.0,0.00027561,7]
[364785380,1749241849802,-902.21,0.00027561,5]
[364785381,1749241849811,-480.0,0.00027561,5]
[364785382,1749241849821,-480.0,0.00027561,5]
[364785383,1749241849831,-480.0,0.00027561,5]
[364785384,1749241849841,-490.74532369,0.00027561,5]
[364785385,1749241849850,-599.88,0.00027561,5]
[364785386,1749241849860,-480.0,0.00027561,5]
[364785387,1749241849870,-7399.63,0.00027561,5]
[364785388,1749241849879,-765.24,0.00027561,5]
[364785389,1749241849888,-57460.09,0.00027561,5]
[364785390,1749241849899,-480.0,0.00027561,5]
[364785391,1749241849908,-703.27,0.00027561,5]
[364785392,1749241849917,-480.0,0.00027561,5]
[364785393,1749241849926,-4676.37,0.00027561,5]
[364785394,1749241849936,-480.0,0.00027561,5]
[364785395,1749241849946,-480.0,0.00027561,5]
[364785396,1749241849956,-2938.32,0.00027561,5]
[364785397,1749241849966,-1379.45,0.00027561,5]
[364785398,1749241849975,-7478.95,0.00027561,5]
[364785399,1749241849984,-755.4,0.00027561,5]
[364785400,1749241849993,-500.0,0.00027561,2]
[364785401,1749241850002,-607.62,0.00027561,5]
[364785402,1749241850012,-480.0,0.00027561,5]
[364785403,1749241850024,-787.0,0.00027561,5]
[364785404,1749241850034,-538.71418087,0.00027561,5]
[364785405,1749241850132,-151.0,0.00027561,7]
[364785406,1749241850143,-151.0,0.00027561,7]
[364785407,1749241850153,-480.0,0.00027561,5]
[364785408,1749241850163,-3373.75,0.00027561,5]
[364785409,1749241850173,-1091.95,0.00027561,5]
[364785410,1749241850183,-150.0,0.00027561,5]
[364785411,1749241850192,-1260.18,0.00027561,5]
[364785412,1749241850202,-949.92,0.00027561,5]
[364785413,1749241850212,-9118.0,0.00027561,5]
[364785414,1749241850221,-480.0,0.00027561,5]
[364785415,1749241850230,-597.4,0.00027561,5]
[364785416,1749241850240,-520.51,0.00027561,5]
[364785417,1749241850249,-480.0,0.00027561,5]
[364785418,1749241850258,-1500.48,0.00027561,5]
[364785419,1749241850268,-1073.19,0.00027561,5]
[364785420,1749241850277,-480.0,0.00027561,5]
[364785421,1749241850286,-2617.35,0.00027561,5]
[364785422,1749241850297,-1091.83,0.00027561,5]
[364785423,1749241850306,-1000.0,0.00027561,5]
[364785424,1749241850315,-1000.0,0.00027561,2]
[364785425,1749241850324,-480.0,0.00027561,5]
[364785426,1749241850333,-480.0,0.00027561,5]
[364785427,1749241850342,-2954.48,0.00027561,5]
[364785428,1749241850352,-480.0,0.00027561,5]
[364785429,1749241850361,-480.0,0.00027561,5]
[364785430,1749241850370,-676.46,0.00027561,5]
[364785431,1749241850379,-480.0,0.00027561,5]
[364785432,1749241850389,-480.0,0.00027561,5]
[364785433,1749241850398,-1100.1,0.00027561,5]
[364785434,1749241850408,-774.3,0.00027561,5]
[364785435,1749241850418,-909.08,0.00027561,5]
[364785436,1749241850427,-771.25,0.00027561,5]
[364785437,1749241850436,-1341.13,0.00027561,5]
[364785438,1749241850445,-480.0,0.00027561,5]
[364785439,1749241850457,-1674.49,0.00027561,5]
[364785440,1749241850466,-480.0,0.00027561,5]
[364785441,1749241850477,-2363.43,0.00027561,5]
[364785442,1749241850488,-404.98680034,0.00027561,5]
[364785443,1749241850498,-1778.5,0.00027561,5]
[364785444,1749241850508,-480.0,0.00027561,2]
[364785445,1749241850519,-2094.52,0.00027561,5]
[364785446,1749241850528,-480.0,0.00027561,5]
[364785447,1749241850538,-2998.55,0.00027561,5]
[364785448,1749241850548,-837.35,0.00027561,5]
[364785449,1749241850558,-1324.98,0.00027561,5]
[364785450,1749241850568,-822.69,0.00027561,5]
[364785451,1749241850578,-4354.28,0.00027561,5]
[364785452,1749241850588,-10833.54,0.00027561,5]
[364785453,1749241850598,-1172.56,0.00027561,5]
[364785454,1749241850609,-480.0,0.00027561,5]
[364785455,1749241850620,-151.0,0.00027561,7]
[364785456,1749241850630,-2910.79,0.00027561,5]
[364785457,1749241850639,-188.981441,0.00027561,7]
[364785458,1749241850649,-480.0,0.00027561,5]
[364785459,1749241850658,-188.981441,0.00027561,7]
[364785460,1749241850667,-480.0,0.00027561,5]
[364785461,1749241850675,-243.8511121,0.00027561,5]
[364785462,1749241850685,-1425.98,0.00027561,5]
[364785463,1749241850694,-298.80277,0.00027561,7]
[364785464,1749241850703,-1161.29,0.00027561,5]
[364785465,1749241850712,-701.08,0.00027561,5]
[364785466,1749241850721,-188.981441,0.00027561,7]
[364785467,1749241850730,-188.981441,0.00027561,7]
[364785468,1749241850739,-480.0,0.00027561,5]
[364785469,1749241850747,-725.11,0.00027561,5]
[364785470,1749241850756,-480.0,0.00027561,5]
[364785471,1749241850765,-622.3,0.00027561,5]
[364785472,1749241850779,-891.78,0.00027561,5]
[364785473,1749241850788,-480.0,0.00027561,5]
[364785474,1749241850798,-2822.75,0.00027561,5]
[364785475,1749241850807,-1363.03,0.00027561,5]
[364785476,1749241850816,-480.0,0.00027561,5]
[364785477,1749241850825,-3135.14,0.00027561,5]
[364785478,1749241850834,-1180.93,0.00027561,5]
[364785479,1749241850843,-931.09,0.00027561,5]
[364785480,1749241850854,-480.0,0.00027561,5]
[364785481,1749241850863,-1414.51,0.00027561,5]
[364785482,1749241850872,-1155.88,0.00027561,5]
[364785483,1749241850881,-4001.96,0.00027561,5]
[364785484,1749241850890,-552.73,0.00027561,5]
[364785485,1749241850900,-480.0,0.00027561,5]
[364785486,1749241850909,-632.88,0.00027561,5]
[364785487,1749241850919,-480.0,0.00027561,5]
[364785488,1749241850928,-1526.89,0.00027561,5]
[364785489,1749241850938,-480.0,0.00027561,5]
[364785490,1749241850947,-471.158267,0.00027561,7]
[364785491,1749241850958,-471.158267,0.00027561,7]
[364785492,1749241850967,-1010.46,0.00027561,5]
[364785493,1749241850977,-480.0,0.00027561,5]
[364785494,1749241850986,-1132.61,0.00027561,5]
[364785495,1749241850995,-593.39,0.00027561,5]
[364785496,1749241851005,-151.0,0.00027561,7]
[364785497,1749241851015,-471.158267,0.00027561,7]
[364785498,1749241851027,-151.0,0.00027561,7]
[364785499,1749241851037,-471.158267,0.00027561,7]
[364785500,1749241851047,-480.0,0.00027561,5]
[364785501,1749241851059,-1110.02,0.00027561,5]
[364785502,1749241851069,-533.37,0.00027561,5]
[364785503,1749241851079,-151.0,0.00027561,7]
[364785504,1749241851089,-4560.52,0.00027561,5]
[364785505,1749241851098,-151.0,0.00027561,7]
[364785506,1749241851108,-480.0,0.00027561,5]
[364785507,1749241851118,-480.0,0.00027561,5]
[364785508,1749241851128,-1741.06,0.00027561,5]
[364785509,1749241851139,-480.0,0.00027561,5]
[364785510,1749241851149,-480.0,0.00027561,5]
[364785511,1749241851160,-480.0,0.00027561,5]
[364785512,1749241851170,-480.0,0.00027561,5]
[364785513,1749241851180,-1207.6,0.00027561,5]
[364785514,1749241851190,-480.0,0.00027561,5]
[364785515,1749241851199,-480.0,0.00027561,5]
[364785516,1749241851209,-526.84,0.00027561,5]
[364785517,1749241851218,-625.4,0.00027561,5]
[364785518,1749241851227,-776.39,0.00027561,5]
[364785519,1749241851237,-947.268152,0.00027561,7]
[364785520,1749241851246,-1627.41,0.00027561,5]
[364785521,1749241851256,-947.268152,0.00027561,7]
[364785522,1749241851265,-150.0,0.00027561,5]
[364785523,1749241851275,-959.5,0.00027561,5]
[364785524,1749241851284,-150.0,0.00027561,2]
[364785525,1749241851295,-500.0,0.00027561,5]
[364785526,1749241851304,-947.268152,0.00027561,7]
[364785527,1749241851313,-947.268152,0.00027561,7]
[364785528,1749241851323,-480.0,0.00027561,5]
[364785529,1749241851333,-3166.58,0.00027561,5]
[364785530,1749241851343,-1038.0,0.00027561,5]
[364785531,1749241851352,-480.0,0.00027561,5]
[364785532,1749241851362,-480.0,0.00027561,5]
[364785533,1749241851372,-480.0,0.00027561,5]
[364785534,1749241851381,-1176.26,0.00027561,5]
[364785535,1749241851391,-1451.66,0.00027561,5]
[364785536,1749241851400,-480.0,0.00027561,5]
[364785537,1749241851410,-463.24735372,0.00027561,5]
[364785538,1749241851419,-480.0,0.00027561,5]
[364785539,1749241851429,-480.0,0.00027561,5]
[364785540,1749241851439,-480.0,0.00027561,5]
[364785541,1749241851449,-480.0,0.00027561,5]
[364785542,1749241851458,-480.0,0.00027561,5]
[364785543,1749241851467,-151.0,0.00027561,7]
[364785544,1749241851476,-480.0,0.00027561,5]
[364785545,1749241851485,-151.0,0.00027561,7]
[364785546,1749241851495,-2618.96,0.00027561,5]
[364785547,1749241851506,-170.339594,0.00027561,7]
[364785548,1749241851515,-7319.26,0.00027561,5]
[364785549,1749241851525,-15228.1,0.00027561,5]
[364785550,1749241851535,-480.0,0.00027561,5]
[364785551,1749241851546,-3041.7,0.00027561,5]
[364785552,1749241851555,-500.0,0.00027561,5]
[364785553,1749241851564,-150.0,0.00027561,2]
[364785554,1749241851574,-480.0,0.00027561,5]
[364785555,1749241851583,-500.0,0.00027561,5]
[364785556,1749241851593,-480.0,0.00027561,5]
[364785557,1749241851602,-649.3,0.00027561,5]
[364785558,1749241851611,-480.0,0.00027561,5]
[364785559,1749241851620,-585.28,0.00027561,5]
[364785560,1749241851630,-269.073679,0.00027561,7]
[364785561,1749241851639,-11478.06,0.00027561,5]
[364785562,1749241851648,-1727.03,0.00027561,5]
[364785563,1749241851657,-1130.77,0.00027561,5]
[364785564,1749241851667,-151.0,0.00027561,7]
[364785565,1749241851676,-857.354062,0.00027561,7]
[364785566,1749241851685,-857.354062,0.00027561,7]
[364785567,1749241851694,-7297.24,0.00027561,5]
[364785568,1749241851704,-480.0,0.00027561,5]
[364785569,1749241851713,-1673.57,0.00027561,5]
[364785570,1749241851722,-480.0,0.00027561,5]
[364785571,1749241851731,-1724.44,0.00027561,5]
[364785572,1749241851741,-155.22438,0.00027561,5]
[364785573,1749241851751,-480.0,0.00027561,5]
[364785574,1749241851761,-857.354062,0.00027561,7]
[364785575,1749241851773,-857.354062,0.00027561,7]
[364785576,1749241851784,-605.57,0.00027561,5]
[364785577,1749241851794,-2022.54,0.00027561,5]
[364785578,1749241851804,-1496.76,0.00027561,5]
[364785579,1749241851814,-616.43,0.00027561,5]
[364785580,1749241851825,-480.0,0.00027561,5]
[364785581,1749241851835,-1644.54,0.00027561,5]
[364785582,1749241851845,-480.0,0.00027561,5]
[364785583,1749241851855,-4800.822384,0.00027561,7]
[364785584,1749241851865,-3349.68,0.00027561,5]
[364785585,1749241851875,-584.83,0.00027561,5]
[364785586,1749241851884,-624.52,0.00027561,5]
[364785587,1749241851894,-480.0,0.00027561,5]
[364785588,1749241851904,-1651.89,0.00027561,5]
[364785589,1749241851914,-4800.822384,0.00027561,7]
[364785590,1749241851924,-480.0,0.00027561,5]
[364785591,1749241851934,-869.35,0.00027561,5]
[364785592,1749241851944,-360.792683,0.00027561,5]
[364785593,1749241851955,-718.31,0.00027561,5]
[364785594,1749241851965,-567.05,0.00027561,5]
[364785595,1749241851975,-593.22,0.00027561,5]
[364785596,1749241851985,-724.33,0.00027561,5]
[364785597,1749241851996,-1529.35,0.00027561,5]
[364785598,1749241852007,-586.21,0.00027561,5]
[364785599,1749241852017,-151.0,0.00027561,7]
[364785600,1749241852027,-593.23,0.00027561,5]
[364785601,1749241852037,-480.0,0.00027561,5]
[364785602,1749241852049,-618.5,0.00027561,5]
[364785603,1749241852059,-645.12,0.00027561,5]
[364785604,1749241852070,-480.0,0.00027561,5]
[364785605,1749241852080,-1029.88,0.00027561,5]
[364785606,1749241852090,-856.04,0.00027561,5]
[364785607,1749241852100,-151.0,0.00027561,7]
[364785608,1749241852111,-1316.83,0.00027561,5]
[364785609,1749241852121,-1219.25,0.00027561,5]
[364785610,1749241852131,-937.26,0.00027561,5]
[364785611,1749241852142,-480.0,0.00027561,2]
[364785612,1749241852152,-2376.4,0.00027561,5]
[364785613,1749241852162,-481.35,0.00027561,5]
[364785614,1749241852172,-1691.35,0.00027561,5]
[364785615,1749241852182,-721.055128,0.00027561,7]
[364785616,1749241852192,-480.0,0.00027561,5]
[364785617,1749241852203,-480.0,0.00027561,5]
[364785618,1749241852213,-874.97,0.00027561,5]
[364785619,1749241852223,-480.0,0.00027561,5]
[364785620,1749241852234,-480.0,0.00027561,5]
[364785621,1749241852244,-721.055128,0.00027561,7]
[364785622,1749241852254,-480.0,0.00027561,5]
[364785623,1749241852264,-480.0,0.00027561,5]
[364785624,1749241852275,-951.49,0.00027561,5]
[364785625,1749241852286,-69770.02207514,0.00027561,2]
[364785626,1749241852297,-500.0,0.00027573,5]
[364785627,1749241852307,-500.0,0.00027573,5]
[364785628,1749241852316,-500.0,0.00027575,2]
[364785629,1749241852327,-150.0,0.00027588,5]
[364785630,1749241852338,-150.0,0.00027588,5]
[364785631,1749241852348,-500.0,0.00027588,5]
[364785632,1749241852359,-150.0,0.00027588,5]
[364785633,1749241852369,-150.0,0.00027588,5]
[364785634,1749241852380,-500.0,0.00027588,2]
[364785635,1749241852391,-787.0,0.00027588,5]
[364785636,1749241852402,-150.0,0.00027588,5]
[364785637,1749241852413,-150.0,0.00027588,5]
[364785638,1749241852423,-500.0,0.00027588,5]
[364785639,1749241852443,-1038.0,0.00027588,5]
[364785640,1749241852454,-500.0,0.00027588,5]
[364785641,1749241852465,-500.0,0.00027588,5]
[364785642,1749241852475,-694.82589275,0.0002759,2]
[364785643,1749241852486,-30000.0,0.00027593,2]
[364785644,1749241852497,-151.0,0.00027593,7]
[364785645,1749241852507,-151.0,0.00027593,7]
[364785646,1749241852518,-3600.0,0.000276,10]
[364785647,1749241852529,-1000.0,0.000276,2]
[364785648,1749241852540,-150.0,0.00027616,5]
[364785649,1749241852550,-150.0,0.00027616,5]
[364785650,1749241852560,-232.6910341,0.00027616,5]
[364785651,1749241852571,-150.0,0.00027616,5]
[364785652,1749241852581,-200.0,0.00027616,5]
[364785653,1749241852592,-216.41901234,0.00027616,2]
[364785654,1749241852602,-787.0,0.00027616,5]
[364785655,1749241852613,-150.0,0.00027616,5]
[364785656,1749241852623,-150.0,0.00027616,5]
[364785657,1749241852634,-500.0,0.00027616,5]
[364785658,1749241852645,-1038.0,0.00027616,5]
[364785659,1749241852655,-500.0,0.00027616,5]
[364785660,1749241852666,-500.0,0.00027616,5]
[364785661,1749241852676,-161.59032199,0.00027618,2]
[364785662,1749241852686,-194.1977872,0.00027643,30]
[364785663,1749241852698,-150.0,0.00027643,5]
[364785664,1749241852708,-150.0,0.00027643,5]
[364785665,1749241852719,-150.0,0.00027643,5]
[364785666,1749241852729,-787.0,0.00027643,5]
[364785667,1749241852739,-150.0,0.00027643,5]
[364785668,1749241852750,-150.0,0.00027643,5]
[364785669,1749241852760,-500.0,0.00027643,5]
[364785670,1749241852774,-1038.0,0.00027643,5]
[364785671,1749241852784,-500.0,0.00027643,5]
[364785672,1749241852795,-305.78,0.00027648,2]
[364785673,1749241852806,-305.77,0.00027648,2]
[364785674,1749241852816,-302.94,0.00027648,2]
[364785675,1749241852826,-300.55,0.00027648,2]
[364785676,1749241852837,-304.59,0.00027648,2]
[364785677,1749241852848,-151.0,0.0002765,7]
[364785678,1749241852860,-151.0,0.0002765,7]
[364785679,1749241852870,-151.0,0.0002765,7]
[364785680,1749241852882,-151.0,0.0002765,7]
[364785681,1749241852892,-151.0,0.0002765,7]
[364785682,1749241852904,-151.0,0.0002765,7]
[364785683,1749241852916,-151.0,0.0002765,7]
[364785684,1749241852930,-150.0,0.00027671,5]
[364785685,1749241852943,-150.0,0.00027671,5]
[364785686,1749241852957,-150.0,0.00027671,5]
[364785687,1749241852970,-787.0,0.00027671,5]
[364785688,1749241852981,-150.0,0.00027671,5]
[364785689,1749241852993,-250.0,0.00027671,5]
[364785690,1749241853007,-500.0,0.00027671,5]
[364785691,1749241853019,-1038.0,0.00027671,5]
[364785692,1749241853032,-500.0,0.00027671,5]
[364785693,1749241853045,-752.632744,0.00027691,6]
[364785694,1749241853058,-151.0,0.00027697,7]
[364785695,1749241853071,-247.548234,0.00027697,7]
[364785696,1749241853082,-247.548234,0.00027697,7]
[364785697,1749241853094,-155.344461,0.00027697,7]
[364785698,1749241853105,-155.344461,0.00027697,7]
[364785699,1749241853116,-151.0,0.00027697,7]
[364785700,1749241853129,-821.990228,0.00027697,7]
[364785701,1749241853141,-158.659202,0.00027697,7]
[364785702,1749241853154,-805.066752,0.00027697,7]
[364785703,1749241853168,-821.990228,0.00027697,7]
[364785704,1749241853183,-983.05591,0.00027697,7]
[364785705,1749241853196,-805.066752,0.00027697,7]
[364785706,1749241853209,-158.659202,0.00027697,7]
[364785707,1749241853221,-983.05591,0.00027697,7]
[364785708,1749241853234,-151.0,0.00027697,7]
[364785709,1749241853247,-250.0,0.00027698,5]
[364785710,1749241853260,-250.0,0.00027698,5]
[364785711,1749241853272,-250.0,0.00027698,5]
[364785712,1749241853283,-787.0,0.00027698,5]
[364785713,1749241853296,-250.0,0.00027698,5]
[364785714,1749241853308,-500.0,0.00027698,5]
[364785715,1749241853321,-1038.0,0.00027698,5]
[364785716,1749241853334,-500.0,0.00027698,5]
[364785717,1749241853349,-151.0,0.00027698,7]
[364785718,1749241853361,-151.0,0.00027698,7]
[364785719,1749241853372,-184.953576,0.00027698,7]
[364785720,1749241853382,-184.953576,0.00027698,7]
[364785721,1749241853394,-151.0,0.00027698,7]
[364785722,1749241853406,-1615.79579324,0.000277,5]
[364785723,1749241853421,-2099.41868,0.000277,2]
[364785724,1749241853431,-4600.0,0.000277,10]
[364785725,1749241853442,-151.0,0.00027706,7]
[364785726,1749241853453,-151.0,0.00027706,7]
[364785727,1749241853463,-151.0,0.00027706,7]
[364785728,1749241853475,-151.0,0.00027706,7]
[364785729,1749241853488,-151.0,0.00027706,7]
[364785730,1749241853500,-821.990228,0.00027706,7]
[364785731,1749241853511,-805.066752,0.00027706,7]
[364785732,1749241853521,-821.990228,0.00027706,7]
[364785733,1749241853531,-983.05591,0.00027706,7]
[364785734,1749241853543,-805.066752,0.00027706,7]
[364785735,1749241853554,-983.05591,0.00027706,7]
[364785736,1749241853565,-151.0,0.00027706,7]
[364785737,1749241853576,-151.0,0.00027707,7]
[364785738,1749241853587,-151.0,0.00027707,7]
[364785739,1749241853598,-151.0,0.00027707,7]
[364785740,1749241853609,-151.0,0.00027707,7]
[364785741,1749241853619,-151.0,0.00027707,7]
[364785742,1749241853630,-151.0,0.00027707,7]
[364785743,1749241853641,-240.64507,0.00027707,7]
[364785744,1749241853651,-151.0,0.00027707,7]
[364785745,1749241853662,-240.64507,0.00027707,7]
[364785746,1749241853673,-247.548234,0.00027707,7]
[364785747,1749241853684,-247.548234,0.00027707,7]
[364785748,1749241853694,-155.344461,0.00027707,7]
[364785749,1749241853705,-155.344461,0.00027707,7]
[364785750,1749241853716,-151.0,0.00027707,7]
[364785751,1749241853728,-151.0,0.00027707,7]
[364785752,1749241853738,-158.659202,0.00027707,7]
[364785753,1749241853749,-158.659202,0.00027707,7]
[364785754,1749241853760,-151.0,0.00027707,7]
[364785755,1749241853772,-188.981441,0.00027707,7]
[364785756,1749241853784,-188.981441,0.00027707,7]
[364785757,1749241853796,-471.158267,0.00027707,7]
[364785758,1749241853807,-151.0,0.00027707,7]
[364785759,1749241853819,-471.158267,0.00027707,7]
[364785760,1749241853830,-178.295591,0.00027707,7]
[364785761,1749241853841,-947.268152,0.00027707,7]
[364785762,1749241853853,-947.268152,0.00027707,7]
[364785763,1749241853863,-151.0,0.00027707,7]
[364785764,1749241853874,-857.354062,0.00027707,7]
[364785765,1749241853885,-857.354062,0.00027707,7]
[364785766,1749241853897,-500.0,0.00027715,2]
[364785767,1749241853909,-151.0,0.00027716,7]
[364785768,1749241853920,-151.0,0.00027716,7]
[364785769,1749241853931,-151.0,0.00027716,7]
[364785770,1749241853943,-305.730752,0.00027716,7]
[364785771,1749241853954,-151.0,0.00027716,7]
[364785772,1749241853965,-305.730752,0.00027716,7]
[364785773,1749241853977,-151.0,0.00027716,7]
[364785774,1749241853988,-151.0,0.00027716,7]
[364785775,1749241853999,-151.0,0.00027716,7]
[364785776,1749241854011,-151.0,0.00027716,7]
[364785777,1749241854023,-151.0,0.00027716,7]
[364785778,1749241854035,-151.0,0.00027716,7]
[364785779,1749241854050,-151.0,0.00027716,7]
[364785780,1749241854061,-151.0,0.00027716,7]
[364785781,1749241854072,-151.0,0.00027716,7]
[364785782,1749241854084,-167.787558,0.00027716,7]
[364785783,1749241854095,-167.787558,0.00027716,7]
[364785784,1749241854107,-151.0,0.00027716,7]
[364785785,1749241854118,-151.0,0.00027716,7]
[364785786,1749241854129,-151.0,0.00027716,7]
[364785787,1749241854139,-151.0,0.00027716,7]
[364785788,1749241854154,-151.0,0.00027716,7]
[364785789,1749241854165,-160.022321,0.00027716,7]
[364785790,1749241854176,-160.022321,0.00027716,7]
[364785791,1749241854187,-701.32114,0.00027716,7]
[364785792,1749241854198,-240.64507,0.00027716,7]
[364785793,1749241854209,-701.32114,0.00027716,7]
[364785794,1749241854220,-240.64507,0.00027716,7]
[364785795,1749241854231,-153.933946,0.00027718,7]
[364785796,1749241854242,-151.0,0.00027718,7]
[364785797,1749241854253,-151.0,0.00027718,7]
[364785798,1749241854265,-190.7,0.00027725,2]
[364785799,1749241854276,-514.89713408,0.00027725,2]
[364785800,1749241854288,-300.0,0.00027725,10]
[364785801,1749241854300,-787.0,0.00027725,5]
[364785802,1749241854312,-500.0,0.00027725,5]
[364785803,1749241854324,-1038.0,0.00027725,5]
[364785804,1749241854335,-500.0,0.00027725,5]
[364785805,1749241854346,-151.0,0.00027726,7]
[364785806,1749241854358,-151.0,0.00027726,7]
[364785807,1749241854369,-152.872388,0.00027726,7]
[364785808,1749241854380,-151.0,0.00027726,7]
[364785809,1749241854391,-151.0,0.00027726,7]